[Event "Nové Hrady - Blesk"]
[Site "Nové Hrady, Czech Republic"]
[Date "2023.08.17"]
[Round "11.7"]
[White "Dudkova, Danka"]
[Black "Steinbauer, Sebastian"]
[Result "0-1"]
[TimeControl "2x3+2s"]
[WhiteFideId "23718439"]
[BlackFideId "399272"]
[WhiteElo "1650"]
[BlackElo "1660"]

1. e4 {[%clk 00:03:03]} {[%emt 00:00:02]} e5 {[%clk 00:03:04]} 2. Nc3 {[%clk
00:03:04]} {[%emt 00:00:02]} Nf6 {[%clk 00:03:05]} 3. Bc4 {[%clk 00:03:04]}
{[%emt 00:00:01]} Bc5 {[%clk 00:03:06]} 4. d3 {[%clk 00:03:03]} {[%emt
00:00:04]} d6 {[%clk 00:03:08]} 5. Nge2 {[%clk 00:03:01]} {[%emt 00:00:05]} Nc6
{[%clk 00:03:08]} {[%emt 00:00:02]} 6. Bg5 {[%clk 00:02:57]} {[%emt 00:00:05]}
h6 {[%clk 00:03:09]} 7. Bh4 {[%clk 00:02:58]} g5 {[%clk 00:03:04]} {[%emt
00:00:10]} 8. Bg3 {[%emt 00:00:03]} Be6 {[%clk 00:02:57]} {[%emt 00:00:06]} 9.
Bxe6 {[%clk 00:02:55]} {[%emt 00:00:05]} fxe6 {[%clk 00:02:58]} {[%emt
00:00:02]} 10. a3 {[%clk 00:02:51]} {[%emt 00:00:06]} d5 {[%clk 00:02:50]}
{[%emt 00:00:11]} 11. exd5 {[%clk 00:02:29]} {[%emt 00:00:23]} exd5 {[%clk
00:02:43]} {[%emt 00:00:09]} 12. O-O {[%clk 00:02:25]} {[%emt 00:00:06]} Qe7
{[%clk 00:01:55]} {[%emt 00:00:50]} 13. b4 {[%emt 00:00:09]} Bd4 {[%clk
00:01:54]} {[%emt 00:00:02]} 14. Nxd4 {[%clk 00:02:05]} {[%emt 00:00:16]} Nxd4
{[%clk 00:01:53]} {[%emt 00:00:02]} 15. Re1 {[%clk 00:02:05]} {[%emt 00:00:03]}
O-O-O {[%clk 00:01:16]} {[%emt 00:00:38]} 16. Bxe5 {[%clk 00:01:59]} {[%emt
00:00:07]} Nc6 {[%clk 00:01:17]} {[%emt 00:00:03]} 17. Qf3 {[%clk 00:01:48]}
{[%emt 00:00:13]} Rhf8 {[%clk 00:01:15]} {[%emt 00:00:03]} 18. Bxf6 {[%clk
00:01:41]} {[%emt 00:00:09]} Qxf6 {[%clk 00:01:16]} 19. Qxf6 {[%clk 00:01:26]}
{[%emt 00:00:18]} Rxf6 {[%clk 00:01:17]} 20. h3 {[%clk 00:01:18]} {[%emt
00:00:13]} Nd4 {[%clk 00:01:16]} {[%emt 00:00:03]} 21. Rac1 {[%clk 00:01:16]}
{[%emt 00:00:03]} Rdf8 {[%clk 00:01:12]} {[%emt 00:00:06]} 22. f3 {[%clk
00:01:07]} {[%emt 00:00:11]} c6 {[%clk 00:01:13]} {[%emt 00:00:01]} 23. Ne2
{[%clk 00:01:03]} {[%emt 00:00:06]} Nf5 {[%clk 00:01:06]} {[%emt 00:00:09]} 24.
c4 {[%clk 00:00:58]} {[%emt 00:00:07]} d4 {[%clk 00:01:03]} {[%emt 00:00:06]}
25. Kf2 {[%clk 00:00:55]} {[%emt 00:00:03]} b6 {[%clk 00:00:56]} {[%emt
00:00:10]} 26. Rc2 {[%clk 00:00:55]} {[%emt 00:00:03]} h5 {[%clk 00:00:48]}
{[%emt 00:00:09]} 27. g4 {[%clk 00:00:43]} {[%emt 00:00:15]} hxg4 {[%clk
00:00:48]} 28. hxg4 {[%clk 00:00:39]} {[%emt 00:00:05]} Ne3 {[%clk 00:00:49]}
{[%emt 00:00:02]} 29. Rd2 {[%clk 00:00:33]} {[%emt 00:00:08]} Rxf3+ 30. Kg1 Rf2
{[%clk 00:00:39]} {[%emt 00:00:12]} 31. Rb2 {[%clk 00:00:24]} {[%emt 00:00:15]}
Rg2+ {[%clk 00:00:38]} {[%emt 00:00:02]} 32. Kh1 {[%clk 00:00:22]} {[%emt
00:00:03]} Rh8# {[%emt 00:00:09]} 0-1

[Event "Nové Hrady - Blesk"]
[Site "Nové Hrady, Czech Republic"]
[Date "2023.08.17"]
[Round "11.8"]
[White "Garabik, Marek"]
[Black "Voršilka, Jiří"]
[Result "1-0"]
[TimeControl "2x3+2s"]
[WhiteFideId "23717742"]
[BlackFideId "365149"]
[WhiteElo "1578"]
[BlackElo "1463"]

1. e4 {[%clk 00:03:03]} {[%emt 00:01:12]} c5 {[%clk 00:03:03]} {[%emt
00:00:02]} 2. Nc3 {[%clk 00:03:04]} Nc6 {[%clk 00:03:04]} 3. Bb5 {[%clk
00:03:05]} {[%emt 00:00:04]} Nd4 {[%clk 00:03:03]} {[%emt 00:00:02]} 4. f4
{[%clk 00:02:59]} {[%emt 00:00:08]} a6 {[%clk 00:03:00]} {[%emt 00:00:05]} 5.
Bc4 {[%clk 00:02:58]} {[%emt 00:00:03]} e6 {[%clk 00:02:55]} {[%emt 00:00:07]}
6. Nf3 {[%clk 00:02:53]} {[%emt 00:00:07]} b5 {[%clk 00:02:54]} {[%emt
00:00:03]} 7. Be2 {[%clk 00:02:37]} {[%emt 00:00:18]} Bb7 {[%clk 00:02:53]}
{[%emt 00:00:03]} 8. d3 {[%clk 00:02:37]} {[%emt 00:00:02]} g6 {[%clk
00:02:47]} {[%emt 00:00:08]} 9. Be3 {[%clk 00:02:36]} {[%emt 00:00:03]} Bg7
{[%clk 00:02:43]} {[%emt 00:00:07]} 10. e5 {[%clk 00:02:34]} {[%emt 00:00:05]}
Nxf3+ {[%clk 00:02:28]} {[%emt 00:00:17]} 11. Bxf3 {[%clk 00:02:35]} Bxf3
{[%clk 00:02:24]} {[%emt 00:00:06]} 12. Qxf3 {[%clk 00:02:36]} Rc8 {[%clk
00:02:18]} {[%emt 00:00:10]} 13. Ne4 {[%clk 00:02:35]} {[%emt 00:00:02]} Bf8
{[%clk 00:02:08]} {[%emt 00:00:11]} 14. O-O {[%clk 00:02:28]} {[%emt 00:00:10]}
d5 {[%clk 00:01:59]} {[%emt 00:00:11]} 15. exd6 {[%clk 00:02:24]} {[%emt
00:00:06]} Bxd6 {[%clk 00:01:59]} {[%emt 00:00:02]} 16. Qf2 {[%clk 00:01:59]}
{[%emt 00:00:27]} c4 {[%clk 00:01:55]} {[%emt 00:00:05]} 17. dxc4 {[%clk
00:01:28]} {[%emt 00:00:34]} Rxc4 {[%clk 00:01:55]} {[%emt 00:00:03]} 18. Bd4
{[%clk 00:01:28]} f6 {[%clk 00:01:54]} {[%emt 00:00:03]} 19. Rae1 {[%clk
00:01:19]} {[%emt 00:00:13]} Be7 {[%clk 00:01:36]} {[%emt 00:00:20]} 20. Bb6
{[%clk 00:01:14]} {[%emt 00:00:07]} Qd5 {[%clk 00:01:30]} {[%emt 00:00:08]} 21.
Nc3 {[%clk 00:01:06]} {[%emt 00:00:09]} Qc6 {[%clk 00:01:22]} {[%emt 00:00:10]}
22. Qe3 {[%clk 00:00:41]} {[%emt 00:00:26]} b4 {[%clk 00:01:14]} {[%emt
00:00:11]} 23. Nd1 {[%clk 00:00:12]} {[%emt 00:00:31]} Rxc2 {[%clk 00:01:08]}
{[%emt 00:00:08]} 24. Nf2 {[%clk 00:00:13]} {[%emt 00:00:01]} Rxb2 {[%clk
00:00:58]} {[%emt 00:00:12]} 25. Qxe6 {[%clk 00:00:14]} Qxe6 {[%clk 00:00:58]}
{[%emt 00:00:03]} 26. Rxe6 {[%clk 00:00:15]} Kf7 {[%clk 00:00:56]} {[%emt
00:00:05]} 27. Rfe1 {[%clk 00:00:12]} {[%emt 00:00:05]} Rxa2 {[%clk 00:00:53]}
{[%emt 00:00:04]} 28. Nd3 {[%clk 00:00:08]} {[%emt 00:00:06]} b3 {[%clk
00:00:51]} {[%emt 00:00:05]} 29. Bd4 {[%clk 00:00:06]} {[%emt 00:00:04]} Rd2
{[%clk 00:00:47]} {[%emt 00:00:06]} 30. R6e3 {[%clk 00:00:04]} {[%emt
00:00:04]} a5 {[%clk 00:00:43]} {[%emt 00:00:05]} 31. Bc3 {[%clk 00:00:05]} a4
{[%clk 00:00:44]} {[%emt 00:00:03]} 32. Bxd2 {[%clk 00:00:06]} a3 {[%clk
00:00:42]} {[%emt 00:00:04]} 33. Bc3 {[%clk 00:00:06]} {[%emt 00:00:03]} b2
{[%clk 00:00:39]} {[%emt 00:00:05]} 34. Nxb2 {[%clk 00:00:07]} axb2 {[%clk
00:00:40]} {[%emt 00:00:02]} 35. Bxb2 {[%clk 00:00:08]} Bc5 {[%clk 00:00:39]}
{[%emt 00:00:03]} 36. Kf2 {[%clk 00:00:07]} {[%emt 00:00:03]} Bxe3+ {[%clk
00:00:38]} {[%emt 00:00:03]} 37. Rxe3 {[%clk 00:00:08]} Nh6 {[%clk 00:00:37]}
{[%emt 00:00:03]} 38. Ra3 {[%clk 00:00:08]} {[%emt 00:00:02]} Rb8 {[%clk
00:00:35]} {[%emt 00:00:05]} 39. Ra7+ {[%clk 00:00:08]} {[%emt 00:00:02]} Ke6
{[%clk 00:00:34]} {[%emt 00:00:03]} 40. Bd4 {[%clk 00:00:08]} {[%emt 00:00:03]}
f5 {[%clk 00:00:28]} {[%emt 00:00:07]} 41. Rxh7 {[%clk 00:00:08]} {[%emt
00:00:02]} Ng4+ {[%clk 00:00:28]} {[%emt 00:00:01]} 42. Kf1 {[%clk 00:00:06]}
{[%emt 00:00:05]} Rb1+ {[%clk 00:00:24]} {[%emt 00:00:07]} 43. Ke2 {[%clk
00:00:07]} Kd5 {[%clk 00:00:21]} {[%emt 00:00:04]} 44. Bc3 {[%clk 00:00:06]}
{[%emt 00:00:04]} Ke4 {[%clk 00:00:21]} {[%emt 00:00:03]} 45. h3 {[%clk
00:00:06]} {[%emt 00:00:02]} Nf6 {[%clk 00:00:19]} {[%emt 00:00:03]} 46. Bxf6
{[%emt 00:00:03]} Kxf4 {[%clk 00:00:18]} {[%emt 00:00:02]} 47. Re7 {[%clk
00:00:06]} {[%emt 00:00:03]} Rg1 {[%clk 00:00:15]} {[%emt 00:00:04]} 48. Be5+
{[%clk 00:00:05]} {[%emt 00:00:03]} Kg5 {[%clk 00:00:15]} {[%emt 00:00:02]} 49.
g3 {[%clk 00:00:06]} Rg2+ {[%clk 00:00:13]} {[%emt 00:00:04]} 50. Kf3 {[%clk
00:00:07]} Ra2 {[%clk 00:00:11]} {[%emt 00:00:05]} 51. h4+ {[%clk 00:00:08]}
Kh6 {[%clk 00:00:11]} {[%emt 00:00:03]} 52. Bg7+ {[%clk 00:00:08]} {[%emt
00:00:02]} Kh5 {[%clk 00:00:12]} {[%emt 00:00:02]} 53. Bc3 {[%clk 00:00:05]}
{[%emt 00:00:05]} Ra3 {[%clk 00:00:13]} 54. Rh7# {[%clk 00:00:06]} 1-0

[Event "Nové Hrady - Blesk"]
[Site "Nové Hrady, Czech Republic"]
[Date "2023.08.17"]
[Round "11.9"]
[White "Slabý, Matěj"]
[Black "Mácová, Markéta"]
[Result "1-0"]
[TimeControl "2x3+2s"]
[WhiteFideId "23734876"]
[BlackFideId "23715588"]
[WhiteElo "1894"]
[BlackElo "1304"]

1. e4 {[%clk 00:03:02]} {[%emt 00:05:13]} e5 {[%clk 00:03:02]} 2. Bc4 {[%clk
00:03:02]} {[%emt 00:00:07]} Nf6 {[%clk 00:03:03]} {[%emt 00:00:02]} 3. d3
{[%clk 00:03:03]} {[%emt 00:00:01]} Bc5 {[%clk 00:03:03]} {[%emt 00:00:02]} 4.
Nf3 {[%clk 00:03:03]} {[%emt 00:00:01]} Nc6 {[%clk 00:03:04]} 5. O-O {[%clk
00:03:03]} {[%emt 00:00:03]} d6 {[%clk 00:03:05]} 6. c3 {[%clk 00:03:04]}
{[%emt 00:00:01]} Bg4 {[%clk 00:03:06]} 7. Bg5 {[%clk 00:03:04]} {[%emt
00:00:03]} h6 {[%clk 00:03:06]} {[%emt 00:00:02]} 8. Bh4 {[%clk 00:03:04]}
{[%emt 00:00:02]} g5 {[%clk 00:03:07]} {[%emt 00:00:01]} 9. Bg3 {[%clk
00:03:04]} Qd7 {[%clk 00:03:03]} {[%emt 00:00:07]} 10. h3 {[%clk 00:02:44]}
{[%emt 00:00:23]} Bxf3 {[%clk 00:02:52]} {[%emt 00:00:12]} 11. Qxf3 {[%clk
00:02:44]} {[%emt 00:00:03]} Qe7 {[%clk 00:02:42]} {[%emt 00:00:12]} 12. Nd2
{[%clk 00:02:37]} {[%emt 00:00:09]} h5 {[%clk 00:02:39]} {[%emt 00:00:05]} 13.
Qf5 {[%clk 00:02:35]} {[%emt 00:00:04]} g4 {[%clk 00:02:32]} {[%emt 00:00:09]}
14. Bh4 {[%clk 00:02:35]} {[%emt 00:00:02]} Rh6 {[%clk 00:02:13]} {[%emt
00:00:21]} 15. a4 {[%clk 00:02:16]} {[%emt 00:00:21]} gxh3 {[%clk 00:02:11]}
{[%emt 00:00:04]} 16. gxh3 {[%clk 00:02:07]} {[%emt 00:00:11]} a6 {[%clk
00:01:20]} {[%emt 00:00:53]} 17. b4 {[%clk 00:01:57]} {[%emt 00:00:12]} Bb6
{[%clk 00:01:17]} {[%emt 00:00:06]} 18. b5 {[%clk 00:01:54]} {[%emt 00:00:04]}
Nd8 {[%clk 00:01:12]} {[%emt 00:00:07]} 19. bxa6 {[%clk 00:01:52]} {[%emt
00:00:04]} bxa6 {[%clk 00:01:11]} {[%emt 00:00:03]} 20. a5 {[%clk 00:01:53]}
Bc5 {[%clk 00:01:10]} {[%emt 00:00:05]} 21. Kh1 {[%clk 00:01:44]} {[%emt
00:00:10]} Ne6 {[%clk 00:01:05]} {[%emt 00:00:07]} 22. Rg1 {[%clk 00:01:27]}
{[%emt 00:00:19]} O-O-O {[%clk 00:01:01]} {[%emt 00:00:07]} 23. Bxa6+ {[%clk
00:01:23]} {[%emt 00:00:05]} Kd7 {[%clk 00:00:55]} {[%emt 00:00:08]} 24. Bc4
{[%clk 00:01:18]} {[%emt 00:00:07]} Rf8 {[%clk 00:00:42]} {[%emt 00:00:16]} 25.
a6 {[%clk 00:01:18]} Ba7 {[%clk 00:00:40]} {[%emt 00:00:04]} 26. Rab1 {[%clk
00:01:13]} {[%emt 00:00:07]} Kd8 {[%clk 00:00:28]} {[%emt 00:00:14]} 27. Rb7
{[%clk 00:01:12]} {[%emt 00:00:03]} Bb6 {[%clk 00:00:28]} {[%emt 00:00:02]} 28.
a7 {[%clk 00:01:07]} {[%emt 00:00:08]} Bxa7 {[%clk 00:00:26]} {[%emt 00:00:03]}
29. Rxa7 {[%clk 00:01:08]} Kd7 {[%clk 00:00:12]} {[%emt 00:00:17]} 30. Bb5+
{[%clk 00:01:07]} {[%emt 00:00:03]} Kd8 {[%clk 00:00:09]} {[%emt 00:00:05]} 31.
Ra8# {[%emt 00:00:04]} 1-0

[Event "Nové Hrady - Blesk"]
[Site "Nové Hrady, Czech Republic"]
[Date "2023.08.17"]
[Round "11.10"]
[White "Durchan, Milan"]
[Black "Rausch, Rudolf"]
[Result "0-1"]
[TimeControl "2x3+2s"]
[WhiteFideId "333212"]
[BlackFideId "1639455"]
[WhiteElo "1677"]
[BlackElo "1806"]

1. f4 {[%clk 00:03:02]} {[%emt 00:00:03]} g6 {[%clk 00:03:03]} 2. Nf3 {[%emt
00:00:02]} d6 3. g3 Bg7 {[%emt 00:00:01]} 4. Bg2 {[%clk 00:03:04]} Nf6 {[%clk
00:03:08]} 5. c3 {[%clk 00:03:05]} O-O {[%clk 00:03:09]} {[%emt 00:00:03]} 6.
d3 {[%emt 00:00:14]} c5 {[%emt 00:00:02]} 7. Qc2 {[%clk 00:02:53]} Nbd7 {[%clk
00:03:11]} {[%emt 00:00:01]} 8. e4 {[%clk 00:02:53]} Rb8 {[%clk 00:03:10]}
{[%emt 00:00:04]} 9. O-O {[%emt 00:00:02]} a6 10. h3 {[%clk 00:02:44]} {[%emt
00:00:11]} b5 {[%clk 00:03:13]} 11. Kh2 {[%clk 00:02:44]} Nb6 {[%clk 00:03:10]}
{[%emt 00:00:07]} 12. Be3 {[%clk 00:02:44]} {[%emt 00:00:02]} d5 {[%clk
00:02:53]} {[%emt 00:00:19]} 13. Bxc5 {[%clk 00:02:25]} {[%emt 00:00:21]} dxe4
{[%clk 00:02:54]} 14. dxe4 {[%clk 00:02:25]} {[%emt 00:00:03]} Qc7 {[%clk
00:02:42]} {[%emt 00:00:15]} 15. Bf2 {[%clk 00:02:12]} {[%emt 00:00:14]} Bb7
{[%clk 00:02:35]} {[%emt 00:00:09]} 16. e5 {[%clk 00:02:07]} {[%emt 00:00:07]}
Ne4 {[%clk 00:02:20]} {[%emt 00:00:18]} 17. Be3 {[%clk 00:01:50]} {[%emt
00:00:19]} Nc4 {[%clk 00:02:12]} {[%emt 00:00:10]} 18. Bd4 {[%clk 00:01:35]}
{[%emt 00:00:16]} f5 {[%clk 00:02:00]} {[%emt 00:00:14]} 19. exf6 {[%clk
00:01:30]} {[%emt 00:00:07]} exf6 {[%clk 00:01:42]} {[%emt 00:00:19]} 20. Nbd2
{[%clk 00:01:15]} {[%emt 00:00:17]} Nexd2 {[%clk 00:01:31]} {[%emt 00:00:14]}
21. Nxd2 {[%clk 00:01:09]} {[%emt 00:00:08]} Bxg2 {[%clk 00:01:25]} {[%emt
00:00:08]} 22. Kxg2 {[%clk 00:01:10]} Qc6+ {[%clk 00:01:23]} {[%emt 00:00:06]}
23. Kh2 {[%clk 00:01:10]} Nd6 {[%clk 00:01:12]} {[%emt 00:00:13]} 24. Rae1
{[%clk 00:01:03]} {[%emt 00:00:09]} Nf5 {[%emt 00:00:35]} 25. Qe4 {[%emt
00:00:21]} Qc7 {[%clk 00:00:46]} {[%emt 00:00:03]} 26. Qe6+ {[%clk 00:00:33]}
{[%emt 00:00:05]} Kh8 {[%clk 00:00:46]} {[%emt 00:00:03]} 27. Nf3 {[%clk
00:00:26]} {[%emt 00:00:09]} Rb7 {[%clk 00:00:35]} {[%emt 00:00:11]} 28. Qe4
{[%clk 00:00:12]} {[%emt 00:00:16]} Rbb8 {[%clk 00:00:33]} {[%emt 00:00:05]} 29.
Qd3 {[%clk 00:00:10]} {[%emt 00:00:04]} Rbd8 {[%clk 00:00:34]} {[%emt
00:00:02]} 30. Re4 {[%clk 00:00:08]} {[%emt 00:00:04]} Nd6 {[%clk 00:00:34]}
{[%emt 00:00:02]} 31. Re6 {[%clk 00:00:05]} {[%emt 00:00:05]} Nc4 {[%clk
00:00:35]} 32. Rd1 {[%clk 00:00:03]} {[%emt 00:00:04]} Kg8 {[%clk 00:00:32]}
{[%emt 00:00:05]} 33. b3 {[%clk 00:00:03]} {[%emt 00:00:02]} Qd7 {[%clk
00:00:29]} {[%emt 00:00:05]} 34. Rde1 {[%clk 00:00:00]} {[%emt 00:00:04]} Qd5
{[%clk 00:00:29]} {[%emt 00:00:02]} 35. bxc4 {[%clk 00:00:00]} {[%emt
00:00:04]} bxc4 {[%clk 00:00:29]} 36. Qe3 {[%clk 00:00:00]} {[%emt 00:00:02]}
Rb8 {[%clk 00:00:29]} {[%emt 00:00:07]} 37. Qe2 {[%clk 00:00:00]} {[%emt
00:00:03]} Rb7 {[%clk 00:00:29]} {[%emt 00:00:04]} 38. Qe4 {[%clk 00:00:00]}
{[%emt 00:00:03]} Qd7 {[%clk 00:00:29]} {[%emt 00:00:02]} 39. Re7 {[%clk
00:00:00]} {[%emt 00:00:03]} Rb2+ {[%clk 00:00:29]} 40. Kh1 {[%clk 00:00:00]}
{[%emt 00:00:03]} Qb5 {[%clk 00:00:29]} {[%emt 00:00:07]} 41. Qe6+ {[%clk
00:00:00]} {[%emt 00:00:02]} Kh8 {[%clk 00:00:29]} {[%emt 00:00:02]} 42. Bxf6
{[%clk 00:00:00]} {[%emt 00:00:03]} Bxf6 {[%clk 00:00:29]} {[%emt 00:00:12]} 43.
Re8 {[%clk 00:00:00]} {[%emt 00:00:04]} Qxe8 {[%emt 00:00:32]} 44. Ng1 {[%emt
00:00:09]} 0-1